Workbook

Sheet machine
B2: Left axle X | C2: 18 | E2: Delta H | G2: -3 | J2: Parameters modified | M2: no
B3: Left axle Y | C3: 25 | E3: Axle distance | G3: 150
B4: Wall width | C4: 10 | E4: X offset | G4: 183 | J4: Calculate
E5: Right axle offset | G5: -18
E6: Window width | G6: 4
B8: point | C8: 1 | D8: 2 | E8: 3 | F8: 4 | G8: 5 | H8: 6 | I8: 7 | J8: 8 | K8: 9 | L8: 10 | M8: 11 | N8: 12 | O8: 13 | P8: 14 | Q8: 15 | R8: 16 | S8: 17 | T8: 18 | U8: 19 | V8: 20 | W8: 21 | X8: 22 | Y8: 23 | Z8: 24 | AA8: 25 | AB8: 26 | AC8: 27 | AD8: 28 | AE8: 29
B9: Left side X | C9: =IF(elements!C3="","",elements!C3) -> -10 | D9: =IF(elements!D3="","",elements!D3) -> 0 | E9: =IF(elements!E3="","",elements!E3) -> 0 | F9: =IF(elements!F3="","",elements!F3) -> 23 | G9: =IF(elements!G3="","",elements!G3) -> 28 | H9: =IF(elements!H3="","",elements!H3) -> 28 | I9: =IF(elements!I3="","",elements!I3) -> 23 | J9: =IF(elements!J3="","",elements!J3) -> 0 | K9: =IF(elements!K3="","",elements!K3) -> 0 | L9: =IF(elements!L3="","",elements!L3) -> -10 | M9: =IF(elements!M3="","",elements!M3) -> -10 | O9: =IF(elements!O3="","",elements!O3) -> 21 | P9: =IF(elements!P3="","",elements!P3) -> 20.59807437 | Q9: =IF(elements!Q3="","",elements!Q3) -> 19.49999364 | R9: =IF(elements!R3="","",elements!R3) -> 17.99998898 | S9: =IF(elements!S3="","",elements!S3) -> 16.49998728 | T9: =IF(elements!T3="","",elements!T3) -> 15.40191461 | U9: =IF(elements!U3="","",elements!U3) -> 15 | V9: =IF(elements!V3="","",elements!V3) -> 15.40193664 | W9: =IF(elements!W3="","",elements!W3) -> 16.50002545 | X9: =IF(elements!X3="","",elements!X3) -> 18.00003306 | Y9: =IF(elements!Y3="","",elements!Y3) -> 19.50003181 | Z9: =IF(elements!Z3="","",elements!Z3) -> 20.59809641 | AA9: =IF(elements!AA3="","",elements!AA3) -> 21
B10: Left side Y | C10: =IF(elements!C4="","",elements!C4) -> 0 | D10: =IF(elements!D4="","",elements!D4) -> 0 | E10: =IF(elements!E4="","",elements!E4) -> 15 | F10: =IF(elements!F4="","",elements!F4) -> 15 | G10: =IF(elements!G4="","",elements!G4) -> 20 | H10: =IF(elements!H4="","",elements!H4) -> 30 | I10: =IF(elements!I4="","",elements!I4) -> 35 | J10: =IF(elements!J4="","",elements!J4) -> 35 | K10: =IF(elements!K4="","",elements!K4) -> 190 | L10: =IF(elements!L4="","",elements!L4) -> 190 | M10: =IF(elements!M4="","",elements!M4) -> 0 | O10: =IF(elements!O4="","",elements!O4) -> 25 | P10: =IF(elements!P4="","",elements!P4) -> 26.50000318 | Q10: =IF(elements!Q4="","",elements!Q4) -> 27.59807988 | R10: =IF(elements!R4="","",elements!R4) -> 28 | S10: =IF(elements!S4="","",elements!S4) -> 27.59806886 | T10: =IF(elements!T4="","",elements!T4) -> 26.49998409 | U10: =IF(elements!U4="","",elements!U4) -> 24.99997796 | V10: =IF(elements!V4="","",elements!V4) -> 23.49997773 | W10: =IF(elements!W4="","",elements!W4) -> 22.4019091 | X10: =IF(elements!X4="","",elements!X4) -> 22 | Y10: =IF(elements!Y4="","",elements!Y4) -> 22.40194215 | Z10: =IF(elements!Z4="","",elements!Z4) -> 23.50003499 | AA10: =IF(elements!AA4="","",elements!AA4) -> 25.00004408
B11: Right side X | C11: =X_offset+elements!C32*COS((elements!C33/rad2deg+Right_side_rad)) -> 184.1140999 | D11: =X_offset+elements!D32*COS((elements!D33/rad2deg+Right_side_rad)) -> 185.9693292 | E11: =X_offset+elements!E32*COS((elements!E33/rad2deg+Right_side_rad)) -> 184.8551994 | F11: =X_offset+elements!F32*COS((elements!F33/rad2deg+Right_side_rad)) -> 181.8858592 | G11: =X_offset+elements!G32*COS((elements!G33/rad2deg+Right_side_rad)) -> 180.0306645 | H11: =X_offset+elements!H32*COS((elements!H33/rad2deg+Right_side_rad)) -> 181.1448006 | I11: =X_offset+elements!I32*COS((elements!I33/rad2deg+Right_side_rad)) -> 184.1141408 | K11: =X_offset+elements!K32*COS((elements!K33/rad2deg+Right_side_rad)) -> 183 | L11: =X_offset+elements!L32*COS((elements!L33/rad2deg+Right_side_rad)) -> 364.0545645 | M11: =X_offset+elements!M32*COS((elements!M33/rad2deg+Right_side_rad)) -> 362.5688047 | N11: =X_offset+elements!N32*COS((elements!N33/rad2deg+Right_side_rad)) -> 330.0718793 | O11: =X_offset+elements!O32*COS((elements!O33/rad2deg+Right_side_rad)) -> 321.53029 | P11: =X_offset+elements!P32*COS((elements!P33/rad2deg+Right_side_rad)) -> 315.0310049 | Q11: =X_offset+elements!Q32*COS((elements!Q33/rad2deg+Right_side_rad)) -> 305.7461691 | R11: =X_offset+elements!R32*COS((elements!R33/rad2deg+Right_side_rad)) -> 302.9606184 | S11: =X_offset+elements!S32*COS((elements!S33/rad2deg+Right_side_rad)) -> 311.5022077 | T11: =X_offset+elements!T32*COS((elements!T33/rad2deg+Right_side_rad)) -> 184.299957 | U11: =X_offset+elements!U32*COS((elements!U33/rad2deg+Right_side_rad)) -> 178.3579818 | V11: =X_offset+elements!V32*COS((elements!V33/rad2deg+Right_side_rad)) -> 175.572531 | W11: =X_offset+elements!W32*COS((elements!W33/rad2deg+Right_side_rad)) -> 183 | Y11: =X_offset+elements!Y32*COS((elements!Y33/rad2deg+Right_side_rad)) -> 315.2164418 | Z11: =X_offset+elements!Z32*COS((elements!Z33/rad2deg+Right_side_rad)) -> 317.0716538 | AA11: =X_offset+elements!AA32*COS((elements!AA33/rad2deg+Right_side_rad)) -> 315.9575209 | AB11: =X_offset+elements!AB32*COS((elements!AB33/rad2deg+Right_side_rad)) -> 312.9881807 | AC11: =X_offset+elements!AC32*COS((elements!AC33/rad2deg+Right_side_rad)) -> 311.132986 | AD11: =X_offset+elements!AD32*COS((elements!AD33/rad2deg+Right_side_rad)) -> 312.2471394 | AE11: =X_offset+elements!AE32*COS((elements!AE33/rad2deg+Right_side_rad)) -> 315.2164827
B12: Right side Y | C12: =elements!C32*SIN((elements!C33/rad2deg+Right_side_rad))+Delta_H+Left_axle_Y -> 19.21454107 | D12: =elements!D32*SIN((elements!D33/rad2deg+Right_side_rad))+Delta_H+Left_axle_Y -> 21.5721166 | E12: =elements!E32*SIN((elements!E33/rad2deg+Right_side_rad))+Delta_H+Left_axle_Y -> 24.35759098 | F12: =elements!F32*SIN((elements!F33/rad2deg+Right_side_rad))+Delta_H+Left_axle_Y -> 24.78544256 | G12: =elements!G32*SIN((elements!G33/rad2deg+Right_side_rad))+Delta_H+Left_axle_Y -> 22.42783977 | H12: =elements!H32*SIN((elements!H33/rad2deg+Right_side_rad))+Delta_H+Left_axle_Y -> 19.64240902 | I12: =elements!I32*SIN((elements!I33/rad2deg+Right_side_rad))+Delta_H+Left_axle_Y -> 19.21455744 | K12: =elements!K32*SIN((elements!K33/rad2deg+Right_side_rad))+Delta_H+Left_axle_Y -> 22 | L12: =elements!L32*SIN((elements!L33/rad2deg+Right_side_rad))+Delta_H+Left_axle_Y -> 94.41715727 | M12: =elements!M32*SIN((elements!M33/rad2deg+Right_side_rad))+Delta_H+Left_axle_Y -> 98.13175665 | N12: =elements!N32*SIN((elements!N33/rad2deg+Right_side_rad))+Delta_H+Left_axle_Y -> 85.13368598 | O12: =elements!O32*SIN((elements!O33/rad2deg+Right_side_rad))+Delta_H+Left_axle_Y -> 106.4888084 | P12: =elements!P32*SIN((elements!P33/rad2deg+Right_side_rad))+Delta_H+Left_axle_Y -> 109.274359 | Q12: =elements!Q32*SIN((elements!Q33/rad2deg+Right_side_rad))+Delta_H+Left_axle_Y -> 105.5606246 | R12: =elements!R32*SIN((elements!R33/rad2deg+Right_side_rad))+Delta_H+Left_axle_Y -> 99.06133941 | S12: =elements!S32*SIN((elements!S33/rad2deg+Right_side_rad))+Delta_H+Left_axle_Y -> 77.70621702 | T12: =elements!T32*SIN((elements!T33/rad2deg+Right_side_rad))+Delta_H+Left_axle_Y -> 26.82805467 | U12: =elements!U32*SIN((elements!U33/rad2deg+Right_side_rad))+Delta_H+Left_axle_Y -> 41.68379199 | V12: =elements!V32*SIN((elements!V33/rad2deg+Right_side_rad))+Delta_H+Left_axle_Y -> 40.56967164 | W12: =elements!W32*SIN((elements!W33/rad2deg+Right_side_rad))+Delta_H+Left_axle_Y -> 22 | Y12: =elements!Y32*SIN((elements!Y33/rad2deg+Right_side_rad))+Delta_H+Left_axle_Y -> 95.34720523 | Z12: =elements!Z32*SIN((elements!Z33/rad2deg+Right_side_rad))+Delta_H+Left_axle_Y -> 97.7047944 | AA12: =elements!AA32*SIN((elements!AA33/rad2deg+Right_side_rad))+Delta_H+Left_axle_Y -> 100.490247 | AB12: =elements!AB32*SIN((elements!AB33/rad2deg+Right_side_rad))+Delta_H+Left_axle_Y -> 100.9180985 | AC12: =elements!AC32*SIN((elements!AC33/rad2deg+Right_side_rad))+Delta_H+Left_axle_Y -> 98.56049575 | AD12: =elements!AD32*SIN((elements!AD33/rad2deg+Right_side_rad))+Delta_H+Left_axle_Y -> 95.77505137 | AE12: =elements!AE32*SIN((elements!AE33/rad2deg+Right_side_rad))+Delta_H+Left_axle_Y -> 95.3472216
B13: Motor X | C13: =Left_axle_X+elements!C58*COS((elements!C59/rad2deg+Motor_angle_rad)) -> 19.45194005 | D13: =Left_axle_X+elements!D58*COS((elements!D59/rad2deg+Motor_angle_rad)) -> 16.54804067 | F13: =Left_axle_X+elements!F58*COS((elements!F59/rad2deg+Motor_angle_rad)) -> 20.62522115 | G13: =Left_axle_X+elements!G58*COS((elements!G59/rad2deg+Motor_angle_rad)) -> 15.37475752 | I13: =Left_axle_X+elements!I58*COS((elements!I59/rad2deg+Motor_angle_rad)) -> 8.806351334 | J13: =Left_axle_X+elements!J58*COS((elements!J59/rad2deg+Motor_angle_rad)) -> 13.60200771 | K13: =Left_axle_X+elements!K58*COS((elements!K59/rad2deg+Motor_angle_rad)) -> 30.10607153 | L13: =Left_axle_X+elements!L58*COS((elements!L59/rad2deg+Motor_angle_rad)) -> 40.89616564 | M13: =Left_axle_X+elements!M58*COS((elements!M59/rad2deg+Motor_angle_rad)) -> 139.9205486 | N13: =Left_axle_X+elements!N58*COS((elements!N59/rad2deg+Motor_angle_rad)) -> 130.3293538 | O13: =Left_axle_X+elements!O58*COS((elements!O59/rad2deg+Motor_angle_rad)) -> 196.3456091 | P13: =Left_axle_X+elements!P58*COS((elements!P59/rad2deg+Motor_angle_rad)) -> 195.1467097 | Q13: =Left_axle_X+elements!Q58*COS((elements!Q59/rad2deg+Motor_angle_rad)) -> 323.2959111 | R13: =Left_axle_X+elements!R58*COS((elements!R59/rad2deg+Motor_angle_rad)) -> 318.4996928 | S13: =Left_axle_X+elements!S58*COS((elements!S59/rad2deg+Motor_angle_rad)) -> 190.3507239 | T13: =Left_axle_X+elements!T58*COS((elements!T59/rad2deg+Motor_angle_rad)) -> 187.9528539 | U13: =Left_axle_X+elements!U58*COS((elements!U59/rad2deg+Motor_angle_rad)) -> 22.9125152 | V13: =Left_axle_X+elements!V58*COS((elements!V59/rad2deg+Motor_angle_rad)) -> 25.31038521 | W13: =Left_axle_X+elements!W58*COS((elements!W59/rad2deg+Motor_angle_rad)) -> 8.806351334 | Y13: =Left_axle_X+elements!Y58*COS((elements!Y59/rad2deg+Motor_angle_rad)) -> 315.5542615 | Z13: =Left_axle_X+elements!Z58*COS((elements!Z59/rad2deg+Motor_angle_rad)) -> 312.6498249 | AB13: =Left_axle_X+elements!AB58*COS((elements!AB59/rad2deg+Motor_angle_rad)) -> 316.7270053 | AC13: =Left_axle_X+elements!AC58*COS((elements!AC59/rad2deg+Motor_angle_rad)) -> 311.477079
B14: Motor Y | C14: =Left_axle_Y+elements!C58*SIN((elements!C59/rad2deg+Motor_angle_rad)) -> 22.37476285 | D14: =Left_axle_Y+elements!D58*SIN((elements!D59/rad2deg+Motor_angle_rad)) -> 27.62522649 | F14: =Left_axle_Y+elements!F58*SIN((elements!F59/rad2deg+Motor_angle_rad)) -> 26.45196898 | G14: =Left_axle_Y+elements!G58*SIN((elements!G59/rad2deg+Motor_angle_rad)) -> 23.5480696 | I14: =Left_axle_Y+elements!I58*SIN((elements!I59/rad2deg+Motor_angle_rad)) -> 33.02974621 | J14: =Left_axle_Y+elements!J58*SIN((elements!J59/rad2deg+Motor_angle_rad)) -> 13.61326808 | K14: =Left_axle_Y+elements!K58*SIN((elements!K59/rad2deg+Motor_angle_rad)) -> 17.68952586 | L14: =Left_axle_Y+elements!L58*SIN((elements!L59/rad2deg+Motor_angle_rad)) -> -25.9977019 | M14: =Left_axle_Y+elements!M58*SIN((elements!M59/rad2deg+Motor_angle_rad)) -> -1.540155252 | N14: =Left_axle_Y+elements!N58*SIN((elements!N59/rad2deg+Motor_angle_rad)) -> 37.29293609 | O14: =Left_axle_Y+elements!O58*SIN((elements!O59/rad2deg+Motor_angle_rad)) -> 53.59796719 | P14: =Left_axle_Y+elements!P58*SIN((elements!P59/rad2deg+Motor_angle_rad)) -> 58.4521036 | Q14: =Left_axle_Y+elements!Q58*SIN((elements!Q59/rad2deg+Motor_angle_rad)) -> 90.10304633 | R14: =Left_axle_Y+elements!R58*SIN((elements!R59/rad2deg+Motor_angle_rad)) -> 109.5217996 | S14: =Left_axle_Y+elements!S58*SIN((elements!S59/rad2deg+Motor_angle_rad)) -> 77.86991543 | T14: =Left_axle_Y+elements!T58*SIN((elements!T59/rad2deg+Motor_angle_rad)) -> 87.57817065 | U14: =Left_axle_Y+elements!U58*SIN((elements!U59/rad2deg+Motor_angle_rad)) -> 46.81438045 | V14: =Left_axle_Y+elements!V58*SIN((elements!V59/rad2deg+Motor_angle_rad)) -> 37.10612523 | W14: =Left_axle_Y+elements!W58*SIN((elements!W59/rad2deg+Motor_angle_rad)) -> 33.02974621 | Y14: =Left_axle_Y+elements!Y58*SIN((elements!Y59/rad2deg+Motor_angle_rad)) -> 95.50762293 | Z14: =Left_axle_Y+elements!Z58*SIN((elements!Z59/rad2deg+Motor_angle_rad)) -> 100.7602618 | AB14: =Left_axle_Y+elements!AB58*SIN((elements!AB59/rad2deg+Motor_angle_rad)) -> 99.58700434 | AC14: =Left_axle_Y+elements!AC58*SIN((elements!AC59/rad2deg+Motor_angle_rad)) -> 96.68092967
B17: Arm length | C17: 305
B19: Motor angle | C19: -76.12627356 | D19: deg | E19: =C19/rad2deg -> -1.328657228 | F19: rad
B20: Motor right axle X | C20: =Left_axle_X-Arm_length*SIN(Motor_angle_rad) -> 314.1023215
B21: Motor right axle Y | C21: =Left_axle_Y+Arm_length*COS(Motor_angle_rad) -> 98.13286008
B23: Window 2nd axle Y | C23: =Left_axle_Y+Delta_H+SQRT((Rotation_radius*Rotation_radius)-(C20-X_offset)*(C20-X_offset)) -> 98.13265598
B24: Window new DX | C24: =C20-X_offset -> 131.1023215
B25: Window new DY | C25: =C23-(Delta_H+Left_axle_Y) -> 76.13265598
B26: Motor to window | C26: =C23-C21 -> -0.0002040976661
B27: Window new angle | C27: =IF(C24>0,ATAN(C25/C24)*rad2deg,IF(C24=0,IF(C23>0,1,-1)*90,ATAN(C25/C24)*rad2deg+180)) -> 30.14416742
B28: Window angle delta | C28: =C27-Default_angle -> -68.19991511 | D28: deg | E28: =C28/rad2deg -> -1.190315852 | F28: rad
B30: Animate
B32: Create pics

Sheet elements
A1: rad2deg | B1: =180/3.1416 -> 57.29564553
O2: 0 | P2: 1 | Q2: 2 | R2: 3 | S2: 4 | T2: 5 | U2: 6 | V2: 7 | W2: 8 | X2: 9 | Y2: 10 | Z2: 11 | AA2: 12
A3: Left side | B3: X | C3: =-Wall_width -> -10 | D3: 0 | E3: 0 | F3: =Left_axle_X+5 -> 23 | G3: =Left_axle_X+10 -> 28 | H3: =Left_axle_X+10 -> 28 | I3: =Left_axle_X+5 -> 23 | J3: 0 | K3: 0 | L3: =-Wall_width -> -10 | M3: =-Wall_width -> -10 | O3: =machine!$C$2+3*COS(O2/12*360/rad2deg) -> 21 | P3: =machine!$C$2+3*COS(P2/12*360/rad2deg) -> 20.59807437 | Q3: =machine!$C$2+3*COS(Q2/12*360/rad2deg) -> 19.49999364 | R3: =machine!$C$2+3*COS(R2/12*360/rad2deg) -> 17.99998898 | S3: =machine!$C$2+3*COS(S2/12*360/rad2deg) -> 16.49998728 | T3: =machine!$C$2+3*COS(T2/12*360/rad2deg) -> 15.40191461 | U3: =machine!$C$2+3*COS(U2/12*360/rad2deg) -> 15 | V3: =machine!$C$2+3*COS(V2/12*360/rad2deg) -> 15.40193664 | W3: =machine!$C$2+3*COS(W2/12*360/rad2deg) -> 16.50002545 | X3: =machine!$C$2+3*COS(X2/12*360/rad2deg) -> 18.00003306 | Y3: =machine!$C$2+3*COS(Y2/12*360/rad2deg) -> 19.50003181 | Z3: =machine!$C$2+3*COS(Z2/12*360/rad2deg) -> 20.59809641 | AA3: =machine!$C$2+3*COS(AA2/12*360/rad2deg) -> 21
B4: Y | C4: 0 | D4: 0 | E4: =Left_axle_Y-10 -> 15 | F4: =Left_axle_Y-10 -> 15 | G4: =Left_axle_Y-5 -> 20 | H4: =Left_axle_Y+5 -> 30 | I4: =Left_axle_Y+10 -> 35 | J4: =Left_axle_Y+10 -> 35 | K4: 190 | L4: 190 | M4: 0 | O4: =machine!$C$3+3*SIN(O2/12*360/rad2deg) -> 25 | P4: =machine!$C$3+3*SIN(P2/12*360/rad2deg) -> 26.50000318 | Q4: =machine!$C$3+3*SIN(Q2/12*360/rad2deg) -> 27.59807988 | R4: =machine!$C$3+3*SIN(R2/12*360/rad2deg) -> 28 | S4: =machine!$C$3+3*SIN(S2/12*360/rad2deg) -> 27.59806886 | T4: =machine!$C$3+3*SIN(T2/12*360/rad2deg) -> 26.49998409 | U4: =machine!$C$3+3*SIN(U2/12*360/rad2deg) -> 24.99997796 | V4: =machine!$C$3+3*SIN(V2/12*360/rad2deg) -> 23.49997773 | W4: =machine!$C$3+3*SIN(W2/12*360/rad2deg) -> 22.4019091 | X4: =machine!$C$3+3*SIN(X2/12*360/rad2deg) -> 22 | Y4: =machine!$C$3+3*SIN(Y2/12*360/rad2deg) -> 22.40194215 | Z4: =machine!$C$3+3*SIN(Z2/12*360/rad2deg) -> 23.50003499 | AA4: =machine!$C$3+3*SIN(AA2/12*360/rad2deg) -> 25.00004408
B5: length | C5: =SQRT(C3*C3+C4*C4) -> 10 | D5: =SQRT(D3*D3+D4*D4) -> 0 | E5: 15 | F5: 27.45906044 | G5: 34.40930107 | H5: 41.03656906 | I5: 41.88078318 | J5: 35 | K5: 190 | L5: 190.2629759 | M5: 10 | N5: 0 | O5: 32.64965543 | P5: 33.56383227 | Q5: 33.7920666 | R5: 33.286628 | S5: 32.15436184 | T5: 30.65074437 | U5: 29.15474058 | V5: 28.09748398 | W5: 27.82258742 | X5: 28.42536174 | Y5: 29.70013894 | Z5: 31.24953152 | AA5: 32.64968919 | AB5: =SQRT(AB3*AB3+AB4*AB4) -> 0 | AC5: 0
B6: angle | C6: =IF(C3>0,ATAN(C4/C3)*rad2deg,IF(C3=0,IF(C4>0,1,-1)*90,ATAN(C4/C3)*rad2deg+180)) -> 180 | D6: -90 | E6: 90 | F6: 33.11126453 | G6: 35.53759469 | H6: 46.97482416 | I6: 56.68923661 | J6: 90 | K6: 90 | L6: 93.01299092 | M6: 180 | N6: -90 | O6: 49.96962388 | P6: 52.14246448 | Q6: 54.75596561 | R6: 57.26465577 | S6: 59.12603214 | T6: 59.83450569 | U6: 59.03608313 | V6: 56.7589463 | W6: 53.62653837 | X6: 50.71042298 | Y6: 48.96156425 | Z6: 48.76488556 | AA6: 49.96967363 | AB6: =IF(AB3>0,ATAN(AB4/AB3)*rad2deg,IF(AB3=0,IF(AB4>0,1,-1)*90,ATAN(AB4/AB3)*rad2deg+180)) -> -90 | AC6: -90
C29: 0 | D29: 1 | E29: 2 | F29: 3 | G29: 4 | H29: 5 | I29: 6 | Y29: 0 | Z29: 1 | AA29: 2 | AB29: 3 | AC29: 4 | AD29: 5 | AE29: 6
A30: Window | B30: X | C30: =$A$31+3*COS(C29/6*360/rad2deg) -> 3 | D30: 1.499993638 | E30: -1.500012724 | F30: -3 | G30: -1.499974551 | H30: 1.500031811 | I30: 3 | K30: 0 | L30: 0 | M30: =-Window_width -> -4 | N30: =-Window_width -> -4 | O30: =-Window_width+Right_axle_offset-5 -> -27 | P30: =-Window_width+Right_axle_offset-10 -> -32 | Q30: =-Window_width+Right_axle_offset-10 -> -32 | R30: =-Window_width+Right_axle_offset-5 -> -27 | S30: =-Window_width -> -4 | T30: =-Window_width -> -4 | U30: -20 | V30: -20 | W30: 0 | Y30: =Right_axle_offset-Window_width+3*COS(Y29/6*360/rad2deg) -> -19 | Z30: -20.50000636 | AA30: -23.50001272 | AB30: -25 | AC30: -23.49997455 | AD30: -20.49996819 | AE30: -19
A31: 0 | B31: Y | C31: =$A$32+3*SIN(C29/6*360/rad2deg) -> 0 | D31: 2.598079885 | E31: 2.598068865 | F31: -2.203923062e-05 | G31: -2.598090904 | H31: -2.598057845 | I31: 4.407846124e-05 | K31: 0 | L31: 195 | M31: 195 | N31: =Axle_distance+10 -> 160 | O31: =Axle_distance+10 -> 160 | P31: =Axle_distance+5 -> 155 | Q31: =Axle_distance-5 -> 145 | R31: =Axle_distance-10 -> 140 | S31: =Axle_distance-10 -> 140 | T31: 3 | U31: 3 | V31: 0 | W31: 0 | Y31: =Axle_distance+3*SIN(Y29/6*360/rad2deg) -> 150 | Z31: 152.5980799 | AA31: 152.5980689 | AB31: 149.999978 | AC31: 147.4019091 | AD31: 147.4019422 | AE31: 150.0000441
A32: 0 | B32: length | C32: =SQRT(C30*C30+C31*C31) -> 3 | D32: =SQRT(D30*D30+D31*D31) -> 3 | E32: 3 | F32: 3 | G32: 3 | H32: 3 | I32: 3 | J32: 0 | K32: 0 | L32: 195 | M32: 195.0410213 | N32: 160.0499922 | O32: 162.2621336 | P32: 158.2687588 | Q32: 148.4890568 | R32: 142.5798022 | S32: 140.0571312 | T32: 5 | U32: 20.22374842 | V32: 20 | W32: =SQRT(W30*W30+W31*W31) -> 0 | X32: =SQRT(X30*X30+X31*X31) -> 0 | Y32: 151.198545 | Z32: 153.9689067 | AA32: 154.3969599 | AB32: 152.0690415 | AC32: 149.2634302 | AD32: 148.8206345 | AE32: 151.1985887
B33: angle | C33: =IF(C30>0,ATAN(C31/C30)*rad2deg,IF(C30=0,IF(C31>0,1,-1)*90,ATAN(C31/C30)*rad2deg+180)) -> 0 | D33: 60 | E33: 120.0004209 | F33: 180.0004209 | G33: 240.0004209 | H33: -59.99915817 | I33: 0.0008418346303 | J33: -90 | K33: -90 | L33: 90 | M33: 91.17534095 | N33: 91.43230329 | O33: 99.57861098 | P33: 101.6651036 | Q33: 102.4452846 | R33: 100.9160674 | S33: 91.63678367 | T33: 143.1301886 | U33: 171.4692543 | V33: 180 | W33: =IF(W30>0,ATAN(W31/W30)*rad2deg,IF(W30=0,IF(W31>0,1,-1)*90,ATAN(W31/W30)*rad2deg+180)) -> -90 | X33: =IF(X30>0,ATAN(X31/X30)*rad2deg,IF(X30=0,IF(X31>0,1,-1)*90,ATAN(X31/X30)*rad2deg+180)) -> -90 | Y33: 97.2192144 | Z33: 97.65149146 | AA33: 98.75493001 | AB33: 99.4625119 | AC33: 99.05850177 | AD33: 97.91783239 | AE33: 97.2192123
M35: Rotation radius | P35: =SQRT((-Window_width+Right_axle_offset)*(-Window_width+Right_axle_offset)+Axle_distance*Axle_distance) -> 151.6047493
M36: Default angle | P36: =IF(-18>0,ATAN(Axle_distance/(-Window_width+Right_axle_offset))*rad2deg,IF(-18=0,IF(Axle_distance>0,1,-1)*90,ATAN(Axle_distance/(-Window_width+Right_axle_offset))*rad2deg+180)) -> 98.34408253 | Q36: deg | R36: =Default_angle/rad2deg -> 1.716432054 | S36: rad
A56: Motor | B56: X | C56: =$A$57+3*COS(Right_side_angle/2/rad2deg) -> 2.896797847 | D56: =$A$57-3*COS(Right_side_angle/2/rad2deg) -> -2.896797847 | F56: =$A$57+3*COS((Right_side_angle/2+90)/rad2deg) -> -0.7801146306 | G56: =$A$57+3*COS((Right_side_angle/2-90)/rad2deg) -> 0.7800933496 | I56: -10 | J56: 10 | K56: 10 | L56: 55 | M56: 55 | N56: 15 | O56: 15 | P56: 10 | Q56: 10 | R56: -10 | S56: -10 | T56: -20 | U56: -20 | V56: -10 | W56: -10 | Y56: =$A$57+3*COS(Right_side_angle/2/rad2deg) -> 2.896797847 | Z56: =$A$57-3*COS(Right_side_angle/2/rad2deg) -> -2.896797847 | AB56: =$A$57+3*COS((Right_side_angle/2+90)/rad2deg) -> -0.7801146306 | AC56: =$A$57+3*COS((Right_side_angle/2-90)/rad2deg) -> 0.7800933496
A57: 0 | B57: Y | C57: =$A$58+3*SIN(Right_side_angle/2/rad2deg) -> 0.7801039901 | D57: =$A$58-3*SIN(Right_side_angle/2/rad2deg) -> -0.7801039901 | F57: =$A$58+3*SIN((Right_side_angle/2+90)/rad2deg) -> 2.896794981 | G57: =$A$58+3*SIN((Right_side_angle/2-90)/rad2deg) -> -2.896800712 | I57: -7 | J57: -7 | K57: 10 | L57: 10 | M57: 112 | N57: 112 | O57: 180 | P57: 180 | Q57: =Arm_length+7 -> 312 | R57: =Arm_length+7 -> 312 | S57: 180 | T57: 180 | U57: 10 | V57: 10 | W57: -7 | Y57: =$A$58+3*SIN(Right_side_angle/2/rad2deg)+Arm_length -> 305.780104 | Z57: =$A$58-3*SIN(Right_side_angle/2/rad2deg)+Arm_length -> 304.219896 | AB57: =$A$58+3*SIN((Right_side_angle/2+90)/rad2deg)+Arm_length -> 307.896795 | AC57: =$A$58+3*SIN((Right_side_angle/2-90)/rad2deg)+Arm_length -> 302.1031993
A58: 0 | B58: length | C58: =SQRT(C56*C56+C57*C57) -> 3 | D58: =SQRT(D56*D56+D57*D57) -> 3 | E58: =SQRT(E56*E56+E57*E57) -> 0 | F58: =SQRT(F56*F56+F57*F57) -> 3 | G58: =SQRT(G56*G56+G57*G57) -> 3 | H58: =SQRT(H56*H56+H57*H57) -> 0 | I58: =SQRT(I56*I56+I57*I57) -> 12.20655562 | J58: =SQRT(J56*J56+J57*J57) -> 12.20655562 | K58: =SQRT(K56*K56+K57*K57) -> 14.14213562 | L58: =SQRT(L56*L56+L57*L57) -> 55.90169944 | M58: =SQRT(M56*M56+M57*M57) -> 124.7757989 | N58: =SQRT(N56*N56+N57*N57) -> 113 | O58: =SQRT(O56*O56+O57*O57) -> 180.6239187 | P58: =SQRT(P56*P56+P57*P57) -> 180.2775638 | Q58: =SQRT(Q56*Q56+Q57*Q57) -> 312.1602153 | R58: =SQRT(R56*R56+R57*R57) -> 312.1602153 | S58: =SQRT(S56*S56+S57*S57) -> 180.2775638 | T58: =SQRT(T56*T56+T57*T57) -> 181.1077028 | U58: =SQRT(U56*U56+U57*U57) -> 22.36067977 | V58: =SQRT(V56*V56+V57*V57) -> 14.14213562 | W58: =SQRT(W56*W56+W57*W57) -> 12.20655562 | X58: 0 | Y58: =SQRT(Y56*Y56+Y57*Y57) -> 305.793825 | Z58: =SQRT(Z56*Z56+Z57*Z57) -> 304.2336874 | AA58: =SQRT(AA56*AA56+AA57*AA57) -> 0 | AB58: =SQRT(AB56*AB56+AB57*AB57) -> 307.8977833 | AC58: =SQRT(AC56*AC56+AC57*AC57) -> 302.1042065
B59: angle | C59: =IF(C56>0,ATAN(C57/C56)*rad2deg,IF(C56=0,IF(C57>0,1,-1)*90,ATAN(C57/C56)*rad2deg+180)) -> 15.07208371 | D59: 195.0720837 | E59: -90 | F59: 105.0725046 | G59: -74.92791629 | H59: -90 | I59: 214.9919384 | J59: -34.99193837 | K59: 44.99989477 | L59: 10.30482237 | M59: 63.84551492 | N59: 82.37165771 | O59: 85.23615899 | P59: 86.81996686 | Q59: 88.16401909 | R59: 91.83598091 | S59: 93.18003314 | T59: 96.34038738 | U59: 153.4350109 | V59: 135.0001052 | W59: 214.9919384 | X59: =IF(X56>0,ATAN(X57/X56)*rad2deg,IF(X56=0,IF(X57>0,1,-1)*90,ATAN(X57/X56)*rad2deg+180)) -> -90 | Y59: 89.45701735 | Z59: 90.54576612 | AA59: -90 | AB59: 90.14537948 | AC59: 89.85184059

Sheet solution
A1: Arm | B1: 205 | C1: 207 | D1: 209 | E1: 211 | F1: 213 | G1: 215 | H1: 217 | I1: 219 | J1: 221 | K1: 223 | L1: 225 | M1: 227 | N1: 229 | O1: 231 | P1: 233 | Q1: 235 | R1: 237 | S1: 239 | T1: 241 | U1: 243 | V1: 245 | W1: 247 | X1: 249 | Y1: 251 | Z1: 253 | AA1: 255 | AB1: 257 | AC1: 259 | AD1: 261 | AE1: 263 | AF1: 265 | AG1: 267 | AH1: 269 | AI1: 271 | AJ1: 273 | AK1: 275 | AL1: 277 | AM1: 279 | AN1: 281 | AO1: 283 | AP1: 285 | AQ1: 287 | AR1: 289 | AS1: 291 | AT1: 293 | AU1: 295 | AV1: 297 | AW1: 299 | AX1: 301 | AY1: 303 | AZ1: 305
A2: Motor angle | B2: -44.19215351 | C2: -44.62219501 | D2: -45.05595389 | E2: -45.49381461 | F2: -45.93587007 | G2: -46.38221905 | H2: -46.83296673 | I2: -47.28822504 | J2: -47.74811304 | K2: -48.21275743 | L2: -48.68229304 | M2: -49.15686337 | N2: -49.63662125 | O2: -50.12172948 | P2: -50.61236165 | Q2: -51.10870294 | R2: -51.61095112 | S2: -52.11931755 | T2: -52.63402846 | U2: -53.15532617 | V2: -53.68347069 | W2: -54.21874135 | X2: -54.76143878 | Y2: -55.31188702 | Z2: -55.87043603 | AA2: -56.43746459 | AB2: -57.01338344 | AC2: -57.59863918 | AD2: -58.19371851 | AE2: -58.79915341 | AF2: -59.415527 | AG2: -60.04348059 | AH2: -60.68372192 | AI2: -61.33703509 | AJ2: -62.00429236 | AK2: -62.68646851 | AL2: -63.38465836 | AM2: -64.09974211 | AN2: -64.833752 | AO2: -65.58800335 | AP2: -66.36434248 | AQ2: -67.16491431 | AR2: -67.99223436 | AS2: -68.84928463 | AT2: -69.73964402 | AU2: -70.66766971 | AV2: -71.63875624 | AW2: -72.65971714 | AX2: -73.73936869 | AY2: -74.88946382 | AZ2: -76.12627356
